[Event "Titled Tuesday Blitz November 07 Late 2023"]
[White "Leiva, Gianmarco"]
[Black "Rostovtsev, Dmitry"]
[WhiteFideId "3804399"]
[BlackFideId "34278320"]
[WhiteElo "2689"]
[BlackElo "2932"]
[Result "0-1"]
[Round "5"]
[TimeControl "180+1"]
[Date "2023.11.07"]
[WhiteClock "0:00:09"]
[BlackClock "0:00:20"]
[Board "19"]

1. e4 {[%clk 0:02:14]}  e5 {[%clk 0:02:57]} 2. Nf3 {[%clk 0:02:12]}  Nc6 {[%clk 0:02:57]} 3. Bc4 {[%clk 0:02:10]}  Bc5 {[%clk 0:02:57]} 4. d3 {[%clk 0:02:10]}  Nf6 {[%clk 0:02:57]} 5. O-O {[%clk 0:02:09]}  d6 {[%clk 0:02:57]} 6. c3 {[%clk 0:02:08]}  a6 {[%clk 0:02:57]} 7. Bb3 {[%clk 0:02:07]}  Ba7 {[%clk 0:02:57]} 8. Re1 {[%clk 0:02:06]}  h6 {[%clk 0:02:57]} 9. Nbd2 {[%clk 0:01:59]}  O-O {[%clk 0:02:56]} 10. h3 {[%clk 0:01:56]}  Nh5 {[%clk 0:02:56]} 11. Nf1 {[%clk 0:01:55]}  Qf6 {[%clk 0:02:55]} 12. Be3 {[%clk 0:01:52]}  Nf4 {[%clk 0:02:55]} 13. d4 {[%clk 0:01:47]}  g6 {[%clk 0:02:46]} 14. Ng3 {[%clk 0:01:36]}  h5 {[%clk 0:02:45]} 15. Bc2 {[%clk 0:01:11]}  h4 {[%clk 0:02:39]} 16. Nf1 {[%clk 0:01:10]}  Kg7 {[%clk 0:02:38]} 17. N1h2 {[%clk 0:01:01]}  Rh8 {[%clk 0:02:38]} 18. Qd2 {[%clk 0:00:44]}  g5 {[%clk 0:02:33]} 19. Kh1 {[%clk 0:00:19]}  Ne7 {[%clk 0:02:32]} 20. Ng1 {[%clk 0:00:08]}  Neg6 {[%clk 0:02:29]} 21. Rad1 {[%clk 0:00:06]}  Be6 {[%clk 0:02:26]} 22. f3 {[%clk 0:00:06]}  Qe7 {[%clk 0:02:21]} 23. Qf2 {[%clk 0:00:06]}  f6 {[%clk 0:02:18]} 24. Rd2 {[%clk 0:00:05]}  Kh7 {[%clk 0:02:03]} 25. Red1 {[%clk 0:00:05]}  Qf7 {[%clk 0:01:50]} 26. a3 {[%clk 0:00:02]}  Bc4 {[%clk 0:01:43]} 27. Ng4 {[%clk 0:00:02]}  Be6 {[%clk 0:01:30]} 28. Qe1 {[%clk 0:00:03]}  Bb6 {[%clk 0:01:22]} 29. Qf2 {[%clk 0:00:03]}  Rhf8 {[%clk 0:01:21]} 30. Qe1 {[%clk 0:00:03]}  Rae8 {[%clk 0:01:18]} 31. Qf2 {[%clk 0:00:04]}  Qg7 {[%clk 0:01:18]} 32. a4 {[%clk 0:00:04]}  a5 {[%clk 0:01:14]} 33. Qe1 {[%clk 0:00:04]}  Nh5 {[%clk 0:01:07]} 34. Bf2 {[%clk 0:00:04]}  Ngf4 {[%clk 0:01:05]} 35. Ne2 {[%clk 0:00:05]}  Qf7 {[%clk 0:00:59]} 36. Nxf4 {[%clk 0:00:04]}  Nxf4 {[%clk 0:01:00]} 37. Be3 {[%clk 0:00:05]}  Nh5 {[%clk 0:00:56]} 38. d5 {[%clk 0:00:05]}  Bd7 {[%clk 0:00:55]} 39. Bxb6 {[%clk 0:00:05]}  cxb6 {[%clk 0:00:56]} 40. c4 {[%clk 0:00:05]}  Rc8 {[%clk 0:00:55]} 41. b3 {[%clk 0:00:05]}  Bxg4 {[%clk 0:00:52]} 42. fxg4 {[%clk 0:00:06]}  Nf4 {[%clk 0:00:51]} 43. Qf2 {[%clk 0:00:06]}  Rc5 {[%clk 0:00:52]} 44. Qe3 {[%clk 0:00:07]}  Kg7 {[%clk 0:00:52]} 45. Rf2 {[%clk 0:00:07]}  Qe7 {[%clk 0:00:52]} 46. Kh2 {[%clk 0:00:08]}  Rfc8 {[%clk 0:00:52]} 47. Rdf1 {[%clk 0:00:08]}  Qd7 {[%clk 0:00:53]} 48. Bd3 {[%clk 0:00:08]}  Qf7 {[%clk 0:00:52]} 49. Be2 {[%clk 0:00:08]}  Qc7 {[%clk 0:00:53]} 50. Rd1 {[%clk 0:00:08]}  Qd8 {[%clk 0:00:53]} 51. Bf1 {[%clk 0:00:09]}  R8c7 {[%clk 0:00:53]} 52. Rfd2 {[%clk 0:00:10]}  Qb8 {[%clk 0:00:54]} 53. Kg1 {[%clk 0:00:09]}  Rc8 {[%clk 0:00:54]} 54. Qf2 {[%clk 0:00:09]}  Qa7 {[%clk 0:00:54]} 55. Qe3 {[%clk 0:00:10]}  R5c7 {[%clk 0:00:52]} 56. Qf2 {[%clk 0:00:10]}  Re7 {[%clk 0:00:53]} 57. Qe3 {[%clk 0:00:11]}  Ree8 {[%clk 0:00:53]} 58. Qf2 {[%clk 0:00:11]}  Rc5 {[%clk 0:00:52]} 59. Kh2 {[%clk 0:00:12]}  Qb8 {[%clk 0:00:51]} 60. Qe3 {[%clk 0:00:12]}  Qc7 {[%clk 0:00:52]} 61. Qf2 {[%clk 0:00:12]}  Qe7 {[%clk 0:00:52]} 62. Qe3 {[%clk 0:00:12]}  Rec8 {[%clk 0:00:52]} 63. Rf2 {[%clk 0:00:12]}  Qf7 {[%clk 0:00:53]} 64. Rf3 {[%clk 0:00:12]}  Qg6 {[%clk 0:00:53]} 65. Qe1 {[%clk 0:00:12]}  Ra8 {[%clk 0:00:49]} 66. Re3 {[%clk 0:00:12]}  Qe8 {[%clk 0:00:44]} 67. Rd2 {[%clk 0:00:12]}  Rcc8 {[%clk 0:00:44]} 68. Rf2 {[%clk 0:00:13]}  Qd8 {[%clk 0:00:44]} 69. Rff3 {[%clk 0:00:13]}  Qc7 {[%clk 0:00:44]} 70. Rc3 {[%clk 0:00:14]}  Qc5 {[%clk 0:00:45]} 71. Qd2 {[%clk 0:00:14]}  Qb4 {[%clk 0:00:44]} 72. Qe3 {[%clk 0:00:13]}  Rc5 {[%clk 0:00:44]} 73. Qf2 {[%clk 0:00:14]}  b5 {[%clk 0:00:37]} 74. axb5 {[%clk 0:00:13]}  a4 {[%clk 0:00:38]} 75. bxa4 {[%clk 0:00:13]}  Rxa4 {[%clk 0:00:39]} 76. Rb3 {[%clk 0:00:13]}  Qa5 {[%clk 0:00:39]} 77. b6 {[%clk 0:00:12]}  Ra2 {[%clk 0:00:26]} 78. Rb2 {[%clk 0:00:12]}  Ra1 {[%clk 0:00:27]} 79. Rfb3 {[%clk 0:00:12]}  Rc1 {[%clk 0:00:22]} 80. Rb5 {[%clk 0:00:12]}  Rxb5 {[%clk 0:00:20]} 81. Rxb5 {[%clk 0:00:12]}  Qa1 {[%clk 0:00:21]} 82. Qb2 {[%clk 0:00:10]}  Qxb2 {[%clk 0:00:12]} 83. Rxb2 {[%clk 0:00:11]}  Rxf1 {[%clk 0:00:13]} 84. c5 {[%clk 0:00:10]}  dxc5 {[%clk 0:00:13]} 85. Rb5 {[%clk 0:00:08]}  Rc1 {[%clk 0:00:11]} 86. Ra5 {[%clk 0:00:07]}  Rb1 {[%clk 0:00:11]} 87. Rxc5 {[%clk 0:00:07]}  Rxb6 {[%clk 0:00:12]} 88. Rc7+ {[%clk 0:00:08]}  Kg6 {[%clk 0:00:12]} 89. Kg1 {[%clk 0:00:07]}  Rb2 {[%clk 0:00:12]} 90. Rc8 {[%clk 0:00:06]}  Rxg2+ {[%clk 0:00:12]} 91. Kf1 {[%clk 0:00:06]}  Rd2 {[%clk 0:00:13]} 92. Rg8+ {[%clk 0:00:06]}  Kf7 {[%clk 0:00:13]} 93. Rh8 {[%clk 0:00:07]}  Nxh3 {[%clk 0:00:13]} 94. Rh7+ {[%clk 0:00:07]}  Kg6 {[%clk 0:00:13]} 95. Rxb7 {[%clk 0:00:08]}  Nf4 {[%clk 0:00:13]} 96. Rb8 {[%clk 0:00:08]}  Rd4 {[%clk 0:00:13]} 97. Rg8+ {[%clk 0:00:07]}  Kf7 {[%clk 0:00:14]} 98. Rh8 {[%clk 0:00:08]}  Rxe4 {[%clk 0:00:14]} 99. Rh7+ {[%clk 0:00:09]}  Kg6 {[%clk 0:00:14]} 100. Re7 {[%clk 0:00:09]}  Rd4 {[%clk 0:00:14]} 101. Kf2 {[%clk 0:00:10]}  Rxd5 {[%clk 0:00:15]} 102. Re8 {[%clk 0:00:10]}  Rd3 {[%clk 0:00:15]} 103. Rg8+ {[%clk 0:00:10]}  Kf7 {[%clk 0:00:16]} 104. Rh8 {[%clk 0:00:11]}  h3 {[%clk 0:00:16]} 105. Kg1 {[%clk 0:00:11]}  Rg3+ {[%clk 0:00:16]} 106. Kh2 {[%clk 0:00:12]}  Rxg4 {[%clk 0:00:17]} 107. Rh7+ {[%clk 0:00:12]}  Kg6 {[%clk 0:00:17]} 108. Rh8 {[%clk 0:00:12]}  Rg2+ {[%clk 0:00:18]} 109. Kh1 {[%clk 0:00:13]}  Rd2 {[%clk 0:00:19]} 110. Rh6+ {[%clk 0:00:13]}  Kxh6 {[%clk 0:00:19]} 111. Kg1 {[%clk 0:00:13]}  Kh5 {[%clk 0:00:19]} 112. Kf1 {[%clk 0:00:14]}  Re2 {[%clk 0:00:20]} 113. Kg1 {[%clk 0:00:09]}  Kg4 {[%clk 0:00:20]} 0-1


[Site "https://www.chess.com"]

[Event "Titled Tuesday Blitz November 07 Late 2023"]
[White "Zeltsan, Joseph"]
[Black "Bortnyk, Mykola"]
[WhiteFideId "30932980"]
[BlackFideId "14120836"]
[WhiteElo "2688"]
[BlackElo "2925"]
[Result "0-1"]
[Round "5"]
[TimeControl "180+1"]
[Date "2023.11.07"]
[WhiteClock "0:00:00"]
[BlackClock "0:00:06"]
[Board "20"]

1. e4 {[%clk 0:03:00]}  Nf6 {[%clk 0:02:56]} 2. e5 {[%clk 0:03:00]}  Nd5 {[%clk 0:02:51]} 3. d4 {[%clk 0:03:01]}  d6 {[%clk 0:02:51]} 4. c4 {[%clk 0:03:01]}  Nb6 {[%clk 0:02:52]} 5. exd6 {[%clk 0:03:02]}  cxd6 {[%clk 0:02:52]} 6. Bd3 {[%clk 0:02:59]}  g6 {[%clk 0:02:52]} 7. Ne2 {[%clk 0:02:59]}  Bg7 {[%clk 0:02:53]} 8. O-O {[%clk 0:02:59]}  Nc6 {[%clk 0:02:52]} 9. Be3 {[%clk 0:02:55]}  Nb4 {[%clk 0:02:44]} 10. Be4 {[%clk 0:02:49]}  d5 {[%clk 0:02:32]} 11. cxd5 {[%clk 0:02:49]}  N4xd5 {[%clk 0:02:33]} 12. Nbc3 {[%clk 0:02:48]}  O-O {[%clk 0:02:29]} 13. Rc1 {[%clk 0:02:43]}  Nxe3 {[%clk 0:02:23]} 14. fxe3 {[%clk 0:02:43]}  Bh6 {[%clk 0:02:18]} 15. Nf4 {[%clk 0:02:38]}  Nc4 {[%clk 0:02:02]} 16. Qe2 {[%clk 0:02:27]}  Nd6 {[%clk 0:01:55]} 17. Bc2 {[%clk 0:02:17]}  Bd7 {[%clk 0:01:51]} 18. Bb3 {[%clk 0:02:14]}  Rc8 {[%clk 0:01:47]} 19. Rf2 {[%clk 0:02:12]}  Ne4 {[%clk 0:01:33]} 20. Rff1 {[%clk 0:02:07]}  Nf6 {[%clk 0:01:28]} 21. Qf3 {[%clk 0:01:59]}  b5 {[%clk 0:01:17]} 22. Rce1 {[%clk 0:01:23]}  b4 {[%clk 0:01:14]} 23. Ncd5 {[%clk 0:01:23]}  Bb5 {[%clk 0:01:10]} 24. Rf2 {[%clk 0:01:18]}  a5 {[%clk 0:01:08]} 25. Bc2 {[%clk 0:00:43]}  a4 {[%clk 0:00:53]} 26. Nxb4 {[%clk 0:00:37]}  Qd7 {[%clk 0:00:44]} 27. h3 {[%clk 0:00:25]}  Qd6 {[%clk 0:00:39]} 28. a3 {[%clk 0:00:23]}  Bg7 {[%clk 0:00:36]} 29. Bd3 {[%clk 0:00:15]}  Bd7 {[%clk 0:00:34]} 30. Bb1 {[%clk 0:00:13]}  e5 {[%clk 0:00:34]} 31. dxe5 {[%clk 0:00:12]}  Qxe5 {[%clk 0:00:35]} 32. Nfd3 {[%clk 0:00:12]}  Qb5 {[%clk 0:00:33]} 33. e4 {[%clk 0:00:13]}  Be6 {[%clk 0:00:24]} 34. Nf4 {[%clk 0:00:12]}  Nd7 {[%clk 0:00:21]} 35. Kh1 {[%clk 0:00:10]}  Bd4 {[%clk 0:00:20]} 36. Rff1 {[%clk 0:00:10]}  Ne5 {[%clk 0:00:20]} 37. Qd1 {[%clk 0:00:09]}  Bxb2 {[%clk 0:00:18]} 38. Nxe6 {[%clk 0:00:08]}  fxe6 {[%clk 0:00:19]} 39. Ba2 {[%clk 0:00:08]}  Rcd8 {[%clk 0:00:15]} 40. Bxe6+ {[%clk 0:00:07]}  Kg7 {[%clk 0:00:16]} 41. Qb1 {[%clk 0:00:05]}  Bxa3 {[%clk 0:00:15]} 42. Nd5 {[%clk 0:00:05]}  Qxb1 {[%clk 0:00:13]} 43. Rxb1 {[%clk 0:00:06]}  Rxf1+ {[%clk 0:00:11]} 44. Rxf1 {[%clk 0:00:07]}  Bb2 {[%clk 0:00:12]} 45. Nc7 {[%clk 0:00:05]}  a3 {[%clk 0:00:10]} 46. Ba2 {[%clk 0:00:06]}  Rd2 {[%clk 0:00:08]} 47. Ne6+ {[%clk 0:00:06]}  Kh6 {[%clk 0:00:09]} 48. Rf4 {[%clk 0:00:06]}  g5 {[%clk 0:00:08]} 49. Rf1 {[%clk 0:00:00]}  Nd3 {[%clk 0:00:06]} 0-1


[Site "https://www.chess.com"]

[Event "Titled Tuesday Blitz November 07 Late 2023"]
[White "Rozman, Levy"]
[Black "Kovalev, Vladislav"]
[WhiteFideId "2039877"]
[BlackFideId "13504398"]
[WhiteElo "2676"]
[BlackElo "2911"]
[Result "1-0"]
[Round "5"]
[TimeControl "180+1"]
[Date "2023.11.07"]
[WhiteClock "0:00:35"]
[BlackClock "0:00:58"]
[Board "24"]

1. e4 {[%clk 0:02:51]}  e5 {[%clk 0:02:59]} 2. Nc3 {[%clk 0:02:50]}  Nc6 {[%clk 0:02:59]} 3. Bc4 {[%clk 0:02:50]}  Nf6 {[%clk 0:03:00]} 4. d3 {[%clk 0:02:50]}  Bc5 {[%clk 0:03:00]} 5. f4 {[%clk 0:02:50]}  d6 {[%clk 0:03:01]} 6. Nf3 {[%clk 0:02:51]}  Bg4 {[%clk 0:02:59]} 7. Na4 {[%clk 0:02:49]}  Nd4 {[%clk 0:02:47]} 8. Nxc5 {[%clk 0:02:45]}  dxc5 {[%clk 0:02:48]} 9. O-O {[%clk 0:02:32]}  O-O {[%clk 0:02:33]} 10. fxe5 {[%clk 0:02:25]}  Nd7 {[%clk 0:02:26]} 11. Bf4 {[%clk 0:02:19]}  b5 {[%clk 0:02:19]} 12. Bb3 {[%clk 0:02:10]}  Qe7 {[%clk 0:02:18]} 13. Qd2 {[%clk 0:01:44]}  Bxf3 {[%clk 0:02:12]} 14. gxf3 {[%clk 0:01:44]}  Nxe5 {[%clk 0:02:13]} 15. Bxe5 {[%clk 0:01:33]}  Qxe5 {[%clk 0:02:14]} 16. c3 {[%clk 0:01:33]}  Nxb3 {[%clk 0:02:04]} 17. axb3 {[%clk 0:01:34]}  Rad8 {[%clk 0:02:04]} 18. Qe3 {[%clk 0:01:31]}  b4 {[%clk 0:02:03]} 19. f4 {[%clk 0:01:24]}  Qd6 {[%clk 0:02:03]} 20. Rxa7 {[%clk 0:01:20]}  bxc3 {[%clk 0:02:01]} 21. bxc3 {[%clk 0:01:20]}  Qxd3 {[%clk 0:02:02]} 22. Qxd3 {[%clk 0:01:18]}  Rxd3 {[%clk 0:02:03]} 23. Rxc7 {[%clk 0:01:18]}  Rxc3 {[%clk 0:02:01]} 24. e5 {[%clk 0:01:09]}  Rd8 {[%clk 0:01:53]} 25. Kg2 {[%clk 0:00:55]}  g6 {[%clk 0:01:52]} 26. Rf3 {[%clk 0:00:52]}  Rd2+ {[%clk 0:01:43]} 27. Kg3 {[%clk 0:00:50]}  Rcc2 {[%clk 0:01:44]} 28. f5 {[%clk 0:00:46]}  Rg2+ {[%clk 0:01:34]} 29. Kf4 {[%clk 0:00:42]}  Rce2 {[%clk 0:00:58]} 30. Rc8+ {[%clk 0:00:33]}  Kg7 {[%clk 0:00:57]} 31. f6+ {[%clk 0:00:34]}  Kh6 {[%clk 0:00:58]} 32. Rh3# {[%clk 0:00:35]} 1-0


[Site "https://www.chess.com"]

[Event "Titled Tuesday Blitz November 07 Late 2023"]
[White "Bauman_Guy"]
[Black "Skvortsov, Andrei"]
[BlackFideId "24108600"]
[WhiteElo "2910"]
[BlackElo "2673"]
[Result "1/2-1/2"]
[Round "5"]
[TimeControl "180+1"]
[Date "2023.11.07"]
[WhiteClock "0:00:05"]
[BlackClock "0:00:06"]
[Board "25"]

1. e4 {[%clk 0:02:47]}  c5 {[%clk 0:03:00]} 2. Nf3 {[%clk 0:02:44]}  d6 {[%clk 0:02:59]} 3. d4 {[%clk 0:02:44]}  cxd4 {[%clk 0:03:00]} 4. Nxd4 {[%clk 0:02:45]}  Nf6 {[%clk 0:03:00]} 5. Nc3 {[%clk 0:02:45]}  g6 {[%clk 0:03:01]} 6. Be3 {[%clk 0:02:44]}  Bg7 {[%clk 0:03:01]} 7. f3 {[%clk 0:02:44]}  O-O {[%clk 0:03:01]} 8. Qd2 {[%clk 0:02:45]}  d5 {[%clk 0:03:02]} 9. e5 {[%clk 0:02:44]}  Ne8 {[%clk 0:03:02]} 10. f4 {[%clk 0:02:42]}  f6 {[%clk 0:03:03]} 11. exf6 {[%clk 0:02:40]}  Nxf6 {[%clk 0:03:04]} 12. O-O-O {[%clk 0:02:40]}  Ng4 {[%clk 0:03:01]} 13. Bg1 {[%clk 0:02:39]}  Rxf4 {[%clk 0:03:00]} 14. Kb1 {[%clk 0:02:36]}  Rf8 {[%clk 0:02:51]} 15. h3 {[%clk 0:02:32]}  Nf6 {[%clk 0:02:51]} 16. g4 {[%clk 0:02:29]}  Nc6 {[%clk 0:02:49]} 17. Bg2 {[%clk 0:02:27]}  Nxd4 {[%clk 0:02:33]} 18. Bxd4 {[%clk 0:02:28]}  e6 {[%clk 0:02:32]} 19. g5 {[%clk 0:02:26]}  Nh5 {[%clk 0:02:31]} 20. Bxg7 {[%clk 0:02:26]}  Nxg7 {[%clk 0:02:32]} 21. h4 {[%clk 0:02:24]}  Qb6 {[%clk 0:02:13]} 22. Rhf1 {[%clk 0:02:12]}  Bd7 {[%clk 0:02:12]} 23. Ne4 {[%clk 0:02:06]}  Rxf1 {[%clk 0:01:58]} 24. Bxf1 {[%clk 0:02:06]}  dxe4 {[%clk 0:01:45]} 25. Qxd7 {[%clk 0:02:06]}  Qc6 {[%clk 0:01:40]} 26. Qxc6 {[%clk 0:02:01]}  bxc6 {[%clk 0:01:41]} 27. Bg2 {[%clk 0:01:59]}  e3 {[%clk 0:01:31]} 28. Re1 {[%clk 0:01:51]}  Nf5 {[%clk 0:01:31]} 29. Bxc6 {[%clk 0:01:51]}  Rd8 {[%clk 0:01:31]} 30. c3 {[%clk 0:01:42]}  e5 {[%clk 0:00:59]} 31. Re2 {[%clk 0:01:15]}  Rd1+ {[%clk 0:00:51]} 32. Kc2 {[%clk 0:01:15]}  Rf1 {[%clk 0:00:38]} 33. Be4 {[%clk 0:01:02]}  Kf7 {[%clk 0:00:37]} 34. b4 {[%clk 0:00:44]}  Ke6 {[%clk 0:00:34]} 35. a4 {[%clk 0:00:44]}  Ra1 {[%clk 0:00:17]} 36. a5 {[%clk 0:00:38]}  Nxh4 {[%clk 0:00:16]} 37. Rxe3 {[%clk 0:00:36]}  Nf5 {[%clk 0:00:17]} 38. Rh3 {[%clk 0:00:34]}  Rg1 {[%clk 0:00:13]} 39. Rxh7 {[%clk 0:00:32]}  Nd6 {[%clk 0:00:13]} 40. Bxg6 {[%clk 0:00:29]}  Rxg5 {[%clk 0:00:14]} 41. Bd3 {[%clk 0:00:28]}  Rg2+ {[%clk 0:00:13]} 42. Kb3 {[%clk 0:00:27]}  Rg3 {[%clk 0:00:14]} 43. Bc4+ {[%clk 0:00:19]}  Kf6 {[%clk 0:00:12]} 44. Rxa7 {[%clk 0:00:18]}  Ne4 {[%clk 0:00:12]} 45. Ra6+ {[%clk 0:00:13]}  Kf5 {[%clk 0:00:11]} 46. Be6+ {[%clk 0:00:10]}  Kf4 {[%clk 0:00:12]} 47. Rc6 {[%clk 0:00:11]}  Nd2+ {[%clk 0:00:11]} 48. Ka4 {[%clk 0:00:11]}  e4 {[%clk 0:00:10]} 49. Bc8 {[%clk 0:00:08]}  e3 {[%clk 0:00:08]} 50. Ba6 {[%clk 0:00:08]}  Rg1 {[%clk 0:00:06]} 51. Re6 {[%clk 0:00:05]}  Ra1+ {[%clk 0:00:06]} 52. Kb5 {[%clk 0:00:05]}  Ne4 {[%clk 0:00:07]} 53. Kb6 {[%clk 0:00:02]}  Nxc3 {[%clk 0:00:06]} 54. Bc4 {[%clk 0:00:03]}  Ne4 {[%clk 0:00:06]} 55. a6 {[%clk 0:00:02]}  Nd2 {[%clk 0:00:07]} 56. Bb5 {[%clk 0:00:01]}  Nb3 {[%clk 0:00:07]} 57. a7 {[%clk 0:00:02]}  Nd4 {[%clk 0:00:07]} 58. Re8 {[%clk 0:00:02]}  Nxb5 {[%clk 0:00:07]} 59. a8=Q {[%clk 0:00:03]}  Rxa8 {[%clk 0:00:07]} 60. Rxa8 {[%clk 0:00:04]}  Nc3 {[%clk 0:00:06]} 61. Ra1 {[%clk 0:00:03]}  Ke4 {[%clk 0:00:05]} 62. Kc5 {[%clk 0:00:03]}  Kd3 {[%clk 0:00:06]} 63. b5 {[%clk 0:00:02]}  Nxb5 {[%clk 0:00:04]} 64. Kxb5 {[%clk 0:00:03]}  e2 {[%clk 0:00:04]} 65. Kb4 {[%clk 0:00:04]}  Kd2 {[%clk 0:00:05]} 66. Ra2+ {[%clk 0:00:04]}  Kd3 {[%clk 0:00:05]} 67. Ra1 {[%clk 0:00:04]}  Kd2 {[%clk 0:00:06]} 68. Ra2+ {[%clk 0:00:04]}  Kd3 {[%clk 0:00:06]} 69. Rxe2 {[%clk 0:00:05]}  Kxe2 {[%clk 0:00:06]} 1/2-1/2


[Site "https://www.chess.com"]

[Event "Titled Tuesday Blitz November 07 Late 2023"]
[White "Bachmann, Axel"]
[Black "Gubajdullin, Alexei"]
[WhiteFideId "3700488"]
[BlackFideId "4141202"]
[WhiteElo "2878"]
[BlackElo "2665"]
[Result "1-0"]
[Round "5"]
[TimeControl "180+1"]
[Date "2023.11.07"]
[WhiteClock "0:00:36"]
[BlackClock "0:00:00"]
[Board "27"]

1. e4 {[%clk 0:02:52]}  c6 {[%clk 0:02:59]} 2. d4 {[%clk 0:02:51]}  d5 {[%clk 0:02:59]} 3. f3 {[%clk 0:02:52]}  e6 {[%clk 0:02:58]} 4. Nc3 {[%clk 0:02:51]}  b6 {[%clk 0:02:56]} 5. Bf4 {[%clk 0:02:45]}  Ba6 {[%clk 0:02:56]} 6. Nge2 {[%clk 0:02:44]}  Nd7 {[%clk 0:02:54]} 7. Qd2 {[%clk 0:02:44]}  Ne7 {[%clk 0:02:46]} 8. h4 {[%clk 0:02:43]}  h5 {[%clk 0:02:39]} 9. O-O-O {[%clk 0:02:41]}  Ng6 {[%clk 0:02:38]} 10. Be3 {[%clk 0:02:35]}  Nxh4 {[%clk 0:02:21]} 11. Nf4 {[%clk 0:02:31]}  Bxf1 {[%clk 0:02:20]} 12. Rdxf1 {[%clk 0:02:32]}  Bd6 {[%clk 0:02:10]} 13. e5 {[%clk 0:02:18]}  Be7 {[%clk 0:02:10]} 14. g3 {[%clk 0:02:19]}  Nf5 {[%clk 0:02:05]} 15. Nxh5 {[%clk 0:02:19]}  Rg8 {[%clk 0:01:56]} 16. Bf4 {[%clk 0:02:06]}  g6 {[%clk 0:01:50]} 17. g4 {[%clk 0:02:06]}  Nxd4 {[%clk 0:01:19]} 18. Ng7+ {[%clk 0:02:05]}  Rxg7 {[%clk 0:01:18]} 19. Rh8+ {[%clk 0:02:05]}  Nf8 {[%clk 0:01:16]} 20. Qxd4 {[%clk 0:02:05]}  Rh7 {[%clk 0:01:13]} 21. Rxh7 {[%clk 0:02:04]}  Nxh7 {[%clk 0:01:13]} 22. Rh1 {[%clk 0:02:04]}  Nf8 {[%clk 0:01:10]} 23. Bd2 {[%clk 0:02:00]}  Qc7 {[%clk 0:01:00]} 24. Qf4 {[%clk 0:02:00]}  g5 {[%clk 0:00:55]} 25. Qg3 {[%clk 0:02:00]}  Ng6 {[%clk 0:00:54]} 26. Rh5 {[%clk 0:01:58]}  Nxe5 {[%clk 0:00:42]} 27. Rh8+ {[%clk 0:01:44]}  Kd7 {[%clk 0:00:41]} 28. Rh3 {[%clk 0:01:36]}  Rh8 {[%clk 0:00:27]} 29. Ne2 {[%clk 0:01:20]}  Ng6 {[%clk 0:00:20]} 30. Qg2 {[%clk 0:01:17]}  Rxh3 {[%clk 0:00:19]} 31. Qxh3 {[%clk 0:01:18]}  Qe5 {[%clk 0:00:18]} 32. Qf1 {[%clk 0:01:13]}  Bc5 {[%clk 0:00:16]} 33. Kb1 {[%clk 0:01:09]}  Be3 {[%clk 0:00:16]} 34. Bc3 {[%clk 0:01:09]}  d4 {[%clk 0:00:16]} 35. Be1 {[%clk 0:01:05]}  Nf4 {[%clk 0:00:13]} 36. Ng3 {[%clk 0:01:06]}  Qb5 {[%clk 0:00:12]} 37. Qh1 {[%clk 0:01:04]}  d3 {[%clk 0:00:12]} 38. Bc3 {[%clk 0:00:56]}  dxc2+ {[%clk 0:00:11]} 39. Kxc2 {[%clk 0:00:57]}  Qd3+ {[%clk 0:00:09]} 40. Kb3 {[%clk 0:00:57]}  c5 {[%clk 0:00:09]} 41. a3 {[%clk 0:00:47]}  Qd5+ {[%clk 0:00:07]} 42. Kc2 {[%clk 0:00:48]}  Qd3+ {[%clk 0:00:06]} 43. Kb3 {[%clk 0:00:48]}  Qd5+ {[%clk 0:00:05]} 44. Kc2 {[%clk 0:00:49]}  c4 {[%clk 0:00:04]} 45. Kb1 {[%clk 0:00:47]}  Qd3+ {[%clk 0:00:04]} 46. Ka2 {[%clk 0:00:47]}  Nd5 {[%clk 0:00:04]} 47. Ne4 {[%clk 0:00:44]}  Kc6 {[%clk 0:00:03]} 48. Qh8 {[%clk 0:00:40]}  f5 {[%clk 0:00:00]} 49. Qe8+ {[%clk 0:00:36]} 1-0


[Site "https://www.chess.com"]

[Event "Titled Tuesday Blitz November 07 Late 2023"]
[White "Domingo Nunez, Ruben"]
[Black "Kamsky, Gata"]
[WhiteFideId "22245570"]
[BlackFideId "2000024"]
[WhiteElo "2660"]
[BlackElo "2857"]
[Result "0-1"]
[Round "5"]
[TimeControl "180+1"]
[Date "2023.11.07"]
[WhiteClock "0:00:00"]
[BlackClock "0:00:50"]
[Board "28"]

1. Nf3 {[%clk 0:02:50]}  Nf6 {[%clk 0:02:58]} 2. b3 {[%clk 0:02:50]}  d5 {[%clk 0:02:57]} 3. Bb2 {[%clk 0:02:50]}  Bf5 {[%clk 0:02:55]} 4. c4 {[%clk 0:02:48]}  e6 {[%clk 0:02:54]} 5. e3 {[%clk 0:02:48]}  h6 {[%clk 0:02:47]} 6. Nc3 {[%clk 0:02:48]}  Nbd7 {[%clk 0:02:42]} 7. h3 {[%clk 0:02:48]}  c6 {[%clk 0:02:42]} 8. d4 {[%clk 0:02:48]}  Bb4 {[%clk 0:02:40]} 9. a3 {[%clk 0:02:47]}  Bxc3+ {[%clk 0:02:39]} 10. Bxc3 {[%clk 0:02:48]}  a5 {[%clk 0:02:40]} 11. Bd3 {[%clk 0:02:48]}  Bxd3 {[%clk 0:02:39]} 12. Qxd3 {[%clk 0:02:49]}  Ne4 {[%clk 0:02:39]} 13. Bb2 {[%clk 0:02:49]}  O-O {[%clk 0:02:37]} 14. Nd2 {[%clk 0:02:49]}  f5 {[%clk 0:02:36]} 15. O-O {[%clk 0:02:43]}  a4 {[%clk 0:02:35]} 16. f3 {[%clk 0:02:31]}  Nxd2 {[%clk 0:02:35]} 17. Qxd2 {[%clk 0:02:32]}  axb3 {[%clk 0:02:35]} 18. Qb4 {[%clk 0:02:33]}  Nb6 {[%clk 0:02:30]} 19. cxd5 {[%clk 0:02:23]}  exd5 {[%clk 0:02:29]} 20. Qxb3 {[%clk 0:02:23]}  Nc4 {[%clk 0:02:29]} 21. Bc3 {[%clk 0:01:56]}  b5 {[%clk 0:02:26]} 22. Bb4 {[%clk 0:01:52]}  Re8 {[%clk 0:02:25]} 23. Rae1 {[%clk 0:01:53]}  Qg5 {[%clk 0:02:18]} 24. Kf2 {[%clk 0:01:34]}  Re6 {[%clk 0:02:10]} 25. Qd3 {[%clk 0:01:15]}  Rae8 {[%clk 0:02:06]} 26. f4 {[%clk 0:01:16]}  Qh4+ {[%clk 0:02:02]} 27. Kg1 {[%clk 0:01:08]}  Re4 {[%clk 0:01:43]} 28. Rf3 {[%clk 0:01:01]}  Qf6 {[%clk 0:01:42]} 29. Kf2 {[%clk 0:00:51]}  Qe6 {[%clk 0:01:36]} 30. Re2 {[%clk 0:00:46]}  g5 {[%clk 0:01:31]} 31. fxg5 {[%clk 0:00:05]}  hxg5 {[%clk 0:01:29]} 32. g3 {[%clk 0:00:06]}  Kg7 {[%clk 0:01:08]} 33. Bd2 {[%clk 0:00:05]}  Rh8 {[%clk 0:01:04]} 34. Kg2 {[%clk 0:00:05]}  Qh6 {[%clk 0:01:01]} 35. Kg1 {[%clk 0:00:04]}  Qxh3 {[%clk 0:01:00]} 36. Rg2 {[%clk 0:00:04]}  Qh1+ {[%clk 0:00:56]} 37. Kf2 {[%clk 0:00:05]}  Qd1 {[%clk 0:00:56]} 38. Rxf5 {[%clk 0:00:04]}  Kg6 {[%clk 0:00:53]} 39. Rf3 {[%clk 0:00:01]}  Nxd2 {[%clk 0:00:52]} 40. Rf4 {[%clk 0:00:01]}  gxf4 {[%clk 0:00:50]} 41. gxf4+ {[%clk 0:00:00]}  Kf6 {[%clk 0:00:50]} 0-1


[Site "https://www.chess.com"]